bitfinex/quotes_ETHUSD_20240819
["timestamp","ask_amount","ask_price","bid_price","bid_amount"]
[1724100180418,3.80894,2625.4,2625.0,2.299]
[1724100182322,3.8088,2625.5,2625.0,2.299]
[1724100182620,3.8088,2625.5,2624.9,7.61922]
[1724100182621,7.61713,2625.7,2625.2,2.4255]
[1724100182827,3.80865,2625.6,2625.2,2.4255]
[1724100184149,2.79554581,2626.2,2625.2,2.4255]
[1724100184150,2.79519533,2626.7,2625.5,2.3682]
[1724100184425,3.94798585,2627.2,2626.5,3.80725]
[1724100184426,2.79519533,2627.2,2626.5,3.80725]
[1724100184631,3.81115,2627.4,2626.7,3.80702]
[1724100184783,3.81115,2627.4,2626.4,2.3682]
[1724100184784,0.005,2627.4,2626.4,2.3682]
[1724100184988,0.005,2627.4,2627.0,6.17471]
[1724100185484,0.005,2627.4,2627.0,2.3682]
[1724100185930,0.005,2627.4,2627.0,6.17476]
[1724100186288,0.005,2627.4,2627.0,2.3682]
[1724100186779,0.005,2627.4,2627.1,0.09040034]
[1724100190307,3.8111,2627.4,2627.1,0.09040034]
[1724100190633,3.80626,2627.3,2627.1,0.09040034]
[1724100191025,3.80626,2627.3,2626.7,2.4044]
[1724100191199,3.80626,2627.3,2627.2,0.09040034]
[1724100191402,3.80626,2627.3,2626.7,2.4044]
[1724100191938,3.80626,2627.3,2626.8,0.0904343]
[1724100192297,3.81108,2627.4,2626.8,4.81773243]
[1724100192543,3.8062,2627.3,2626.9,0.0894036]
[1724100192707,3.8064,2627.2,2626.9,0.0894036]
[1724100193048,0.005,2627.4,2626.6,3.0]
[1724100193049,3.8065,2627.1,2626.6,3.0]
[1724100193196,3.8068,2626.9,2626.4,5.4044]
[1724100193399,3.80691,2626.8,2626.3,3.0]
[1724100193627,2.3926,2627.2,2626.3,0.921223]
[1724100193628,3.80679,2626.9,2626.3,0.921223]
[1724100193830,3.80671,2627.0,2626.3,7.728833]
[1724100193994,3.80671,2627.0,2626.4,3.80747]
[1724100194711,3.80671,2627.0,2626.3,3.921223]
[1724100194936,3.80671,2627.0,2626.3,3.0]
[1724100194937,3.80677,2626.9,2626.3,3.0]
[1724100195251,3.80671,2627.0,2626.4,3.80748]
[1724100195459,3.80648,2627.1,2626.5,3.80732]
[1724100195606,3.80648,2627.1,2626.3,6.80762]
[1724100195607,7.61308,2627.1,2626.3,6.80751]
[1724100195804,3.80648,2627.1,2626.4,3.80741]
[1724100196007,3.80648,2627.1,2626.4,5.109342]
[1724100196440,7.61304,2627.1,2626.4,5.109342]
[1724100196642,3.80677,2626.9,2626.3,6.80762]
[1724100197003,7.61364,2626.9,2626.3,6.80762]
[1724100197341,3.80706,2626.7,2626.2,2.4044]
[1724100197564,3.80692,2626.8,2626.2,5.4044]
[1724100197853,3.80677,2626.9,2626.3,3.80761]
[1724100198006,3.80663,2627.0,2626.3,3.80757]
[1724100198524,3.80677,2626.9,2626.3,3.80757]
[1724100198685,3.80663,2627.0,2626.3,7.6151]
[1724100198881,3.80663,2627.0,2626.3,3.80753]
[1724100199373,3.136,2627.3,2626.5,3.80734]
[1724100199529,2.3976,2627.4,2626.3,1.3940963]
[1724100199530,3.80648,2627.1,2626.4,3.80735]
[1724100200158,3.80648,2627.1,2626.4,7.61477]
[1724100200376,3.80648,2627.1,2626.4,7.61474]
[1724100200859,3.80648,2627.1,2626.5,3.80732]
[1724100201037,4.567755,2627.1,2626.5,3.80732]
[1724100201237,0.761275,2627.1,2626.5,3.80732]
[1724100201437,3.80635,2627.2,2626.5,3.80732]
[1724100201733,3.80635,2627.2,2626.6,3.89676604]
[1724100203675,3.80648,2627.1,2626.6,0.08959604]
[1724100206238,3.80662,2627.0,2626.6,0.08959604]
[1724100206580,3.80678,2626.9,2626.6,0.08959604]
[1724100206734,3.80691,2626.8,2626.2,9.59396]
[1724100206937,7.61382,2626.8,2626.7,0.08962432]
[1724100207182,2.2836,2627.0,2626.0,3.0]
[1724100207183,3.8075,2626.4,2626.0,3.0]
[1724100207689,3.8075,2626.4,2625.7,3.80841]
[1724100207690,3.80777,2626.3,2625.5,3.80869]
[1724100207836,4.188547,2626.3,2625.6,2.385]
[1724100208041,4.188507,2626.3,2625.7,3.80843]
[1724100208281,7.996247,2626.3,2625.6,2.385]
[1724100209068,7.996247,2626.3,2625.6,6.19361]
[1724100209388,7.996247,2626.3,2625.6,2.385]
[1724100209389,3.80793,2626.1,2625.6,2.385]
[1724100209588,2.9623126,2626.2,2625.1,2.385]
[1724100209812,3.80793,2626.1,2625.5,3.80876]
[1724100210099,3.80793,2626.1,2625.4,3.8088]
[1724100210665,3.80793,2626.1,2625.4,7.61767]
[1724100210975,7.61595,2626.1,2625.4,4.809067]
[1724100211312,3.80793,2626.1,2625.5,3.80877]
[1724100215519,3.80793,2626.1,2625.4,4.809197]
[1724100216893,3.80793,2626.1,2625.5,3.89861843]
[1724100218322,3.80793,2626.1,2625.5,0.08984843]
[1724100218618,3.80793,2626.1,2625.5,3.89861843]
[1724100218794,3.8078,2626.2,2625.6,3.80865]
[1724100219189,3.8078,2626.2,2625.7,0.09018244]
[1724100219600,3.80775,2626.3,2625.8,2.4757]
[1724100219781,3.80771,2626.3,2625.8,2.4757]
[1724100219982,3.80771,2626.3,2625.9,0.0901881]
[1724100220424,8.605317,2626.3,2625.9,0.0901881]
[1724100220720,3.80778,2626.2,2625.6,6.28433]
[1724100220926,3.80778,2626.2,2626.0,0.0901428]
[1724100221144,3.80778,2626.2,2625.6,3.80863]
[1724100221316,3.80778,2626.2,2626.1,0.0901428]
[1724100221501,3.80778,2626.2,2625.6,3.80863]
[1724100221502,5.2102767,2626.2,2625.6,3.80863]
[1724100221708,5.2102767,2626.2,2625.7,0.0901428]
[1724100223127,5.2102767,2626.2,2625.7,2.5658428]
[1724100223348,3.80778,2626.2,2625.7,2.5658428]
[1724100223515,3.80778,2626.2,2625.7,0.0901428]
[1724100224149,3.80807,2626.0,2625.7,0.0901428]
[1724100224512,3.80807,2626.0,2625.5,2.4757]
[1724100224738,3.80795,2626.1,2625.8,0.09014846]
[1724100225042,4.569523,2626.1,2625.5,6.28449]
[1724100225246,3.80807,2626.0,2625.9,0.09019942]
[1724100225420,3.80827,2625.9,2625.3,3.80897]
[1724100227749,3.80809,2626.0,2625.4,3.80892]
[1724100228047,3.80809,2626.0,2625.4,3.80886]
[1724100229557,11.16765,2626.3,2625.7,6.26103]
[1724100229759,11.16765,2626.3,2625.7,2.4526]
[1724100229930,3.80785,2626.2,2625.7,2.4526]
[1724100230129,12.284415,2626.3,2625.7,2.4526]
[1724100230441,12.284415,2626.3,2625.7,6.2611]
[1724100231225,16.092175,2626.3,2625.7,6.2611]
[1724100231642,3.80779,2626.2,2625.7,2.4526]
[1724100231820,3.80779,2626.2,2625.8,0.09015415]
[1724100232216,3.80779,2626.2,2625.7,2.4526]
[1724100232217,3.80779,2626.2,2625.7,6.2611]
[1724100232425,12.284415,2626.3,2625.9,0.09015415]
[1724100232730,12.284415,2626.3,2625.7,6.2611]
[1724100233126,12.284415,2626.3,2625.8,0.09015415]
[1724100233546,12.284415,2626.3,2625.7,6.2611]
[1724100233752,12.284415,2626.3,2625.9,0.09015415]
[1724100233953,12.284415,2626.3,2625.7,6.2611]
[1724100234326,12.284415,2626.3,2625.8,0.09015415]
[1724100234757,12.284415,2626.3,2625.7,2.4526]
[1724100234758,7.61603,2626.1,2625.7,2.4526]
[1724100234927,3.80801,2626.1,2625.9,0.0900579]
[1724100235123,3.80801,2626.1,2625.4,2.4526]
[1724100235351,3.80822,2625.9,2625.4,3.0]
[1724100236963,3.80822,2625.9,2625.4,6.80893]
[1724100237163,3.80807,2626.0,2625.5,2.4526]
[1724100237506,3.80795,2626.1,2625.5,9.26138]
[1724100238877,3.80781,2626.2,2625.6,3.80863]
[1724100239104,3.80781,2626.2,2625.6,5.2501539]
[1724100239105,7.61568,2626.2,2625.6,5.2501539]
[1724100239398,3.80796,2626.1,2625.6,1.4415239]
[1724100239601,3.80796,2626.1,2625.5,9.26138]
[1724100240196,3.80807,2626.0,2625.5,5.4526]
[1724100240783,3.80794,2626.1,2625.5,9.26138]
[1724100240982,3.8078,2626.2,2625.5,9.26128]
[1724100241219,4.23823107,2626.2,2625.5,9.26128]
[1724100242022,4.23823107,2626.2,2625.6,3.80864]
[1724100242638,3.80793,2626.1,2625.5,9.26133]
[1724100242835,11.16765,2626.3,2625.6,3.80856]
[1724100242999,11.16765,2626.3,2625.7,6.261]
[1724100246291,12.906789,2626.3,2625.7,6.261]
[1724100246695,12.906789,2626.3,2625.8,0.09013716]
[1724100247002,12.906789,2626.3,2625.7,6.261]
[1724100247533,9.099139,2626.3,2625.8,3.89849716]
[1724100247736,7.36,2626.3,2625.8,3.89849716]
[1724100247942,7.36,2626.3,2625.9,2.4526]
[1724100248090,7.36,2626.3,2626.2,2.4526]
[1724100248291,3.80707,2626.7,2626.2,2.54273716]
[1724100248491,4.2106,2626.7,2626.2,0.09013716]
[1724100248734,4.2106,2626.7,2626.0,2.4526]
[1724100248735,3.80735,2626.5,2626.0,2.4526]
[1724100248904,3.80735,2626.5,2626.3,0.0901315]
[1724100249096,3.80735,2626.5,2626.0,2.4526]
[1724100249293,3.80735,2626.5,2626.1,0.08983904]
[1724100249940,6.06157,2626.5,2626.1,0.08983904]
[1724100250122,3.8077,2626.3,2626.1,0.08983904]
[1724100250435,3.8077,2626.3,2625.8,2.2622]
[1724100250938,3.8077,2626.3,2625.9,0.08969184]
[1724100251340,3.8077,2626.3,2625.8,2.2622]
[1724100251540,3.80727,2626.6,2626.0,3.80806]
[1724100251839,5.85027137,2626.6,2625.9,0.08978808]
[1724100252001,3.80737,2626.5,2625.9,3.80815]
[1724100252437,9.65761137,2626.6,2625.9,3.80815]
[1724100254928,3.80735,2626.5,2625.9,3.80815]
[1724100257525,3.80749,2626.4,2625.8,6.07055]
[1724100257972,3.80749,2626.4,2625.9,0.08961255]
[1724100260437,1.00611514,2626.5,2625.9,3.89781255]
[1724100260438,4.81348514,2626.5,2625.9,3.89781255]
[1724100260639,3.80708,2626.7,2626.0,6.29666]
[1724100260867,7.36,2626.8,2626.2,6.29636]
[1724100261079,7.36,2626.8,2626.3,3.80756]
[1724100261680,7.36,2626.8,2626.4,0.08951065]
[1724100262430,7.36,2626.8,2626.5,2.4162]
[1724100263030,3.80658,2627.1,2626.6,0.08951065]
[1724100263232,0.66055824,2627.0,2626.6,0.08951065]
[1724100264778,3.80668,2627.0,2626.6,0.08951065]
[1724100265584,3.80679,2626.9,2626.6,0.08951065]
[1724100268498,3.80705,2626.7,2626.6,0.08951065]
[1724100268790,3.80677,2626.9,2626.3,2.4162]
[1724100268973,3.80693,2626.8,2626.6,0.08902955]
[1724100269287,3.80666,2627.0,2626.4,3.80748]
[1724100269448,3.80666,2627.0,2626.7,0.08903521]
[1724100269652,3.80666,2627.0,2626.4,3.80748]
[1724100269961,3.80666,2627.0,2626.7,2.4398]
[1724100270381,3.80684,2626.9,2626.4,2.4398]
[1724100270567,3.80698,2626.8,2626.4,2.4398]
[1724100272249,7.61423,2626.7,2626.2,5.3876]
[1724100272457,7.61421,2626.7,2626.2,2.3876]
[1724100272757,3.80707,2626.7,2626.2,2.3876]
[1724100273800,7.61424,2626.7,2626.2,2.3876]
[1724100274000,3.80707,2626.7,2626.2,2.3876]
[1724100274276,4.794217,2626.7,2626.2,2.3876]
[1724100274585,6.099217,2626.7,2626.2,2.3876]
[1724100274786,3.80721,2626.6,2626.2,2.3876]
[1724100276326,3.80721,2626.6,2626.1,9.19552]
[1724100276491,6.099217,2626.7,2626.1,9.19545]
[1724100276815,5.11207,2626.7,2626.2,0.08909746]
[1724100279122,3.80702,2626.8,2626.2,0.08909746]
[1724100279123,3.80698,2626.8,2626.2,0.08909746]
[1724100279324,3.80698,2626.8,2626.3,2.4879]
[1724100279818,3.80698,2626.8,2626.4,0.08926161]
[1724100280238,1.305,2626.7,2626.4,0.08926161]
[1724100280609,5.11213,2626.7,2626.4,0.08926161]
[1724100280807,1.305,2626.7,2626.4,0.08926161]
[1724100281499,5.11214,2626.7,2626.4,0.08926161]
[1724100281696,1.305,2626.5,2626.4,0.08926161]
[1724100281930,1.305,2626.5,2626.1,9.19421]
[1724100282146,1.305,2626.5,2626.2,0.08924463]
[1724100284511,1.305,2626.5,2626.2,3.89701463]
[1724100284837,1.305,2626.7,2626.2,3.89701463]
[1724100286399,4.47281831,2627.1,2626.2,3.89701463]
[1724100286400,3.689,2626.5,2626.2,0.08924463]
[1724100286602,5.11263,2626.3,2626.2,0.08924463]
[1724100286912,1.305,2626.3,2626.2,0.08917031]
[1724100287130,1.305,2626.3,2625.9,3.0]
[1724100287437,3.80759,2626.4,2626.0,0.08917031]
[1724100287738,1.305,2626.5,2626.0,0.08917031]
[1724100287739,5.11236,2626.5,2626.0,0.08917031]
[1724100288750,5.11207,2626.7,2626.1,6.2299]
[1724100288928,5.11207,2626.7,2626.2,0.08929484]
[1724100289106,1.305,2626.7,2626.2,3.89702484]
[1724100289302,1.305,2626.5,2626.2,0.08929484]
[1724100290734,3.80708,2626.7,2626.2,3.89706484]
[1724100290735,5.11208,2626.7,2626.2,3.89706484]
[1724100290917,3.80708,2626.7,2626.3,2.422]
[1724100291219,1.305,2626.8,2626.3,2.422]
[1724100291220,5.11192,2626.8,2626.4,0.08927785]
[1724100291425,3.80679,2626.9,2626.4,0.08927785]
[1724100291754,7.36,2627.2,2626.5,6.22928]
[1724100291755,11.16642,2627.2,2626.5,6.22928]
[1724100291918,11.16642,2627.2,2626.6,3.80711]
[1724100291919,12.47133,2627.2,2626.6,3.80711]
[1724100292122,12.47133,2627.2,2626.6,4.81968578]
[1724100292332,12.47133,2627.2,2626.7,0.08926653]
[1724100293657,1.305,2627.0,2626.7,0.08926653]
[1724100293860,11.16633,2627.2,2626.7,0.08926653]
[1724100294072,1.305,2627.1,2626.8,2.2524]
[1724100294362,15.97105,2627.4,2626.9,0.08914767]
[1724100294588,3.80619,2627.3,2626.9,0.08914767]
[1724100294747,3.80619,2627.3,2626.8,2.2524]
[1724100295058,3.80619,2627.3,2626.9,0.08914767]
[1724100295216,3.80634,2627.2,2626.9,0.08914767]
[1724100295417,6.67191696,2627.4,2626.8,2.2524]
[1724100295623,6.67191696,2627.4,2627.0,0.08914767]
[1724100295824,10.47803696,2627.4,2627.0,0.08914767]
[1724100296013,10.47804696,2627.4,2626.8,2.2524]
[1724100296235,0.005,2627.4,2626.8,2.2524]
[1724100296464,0.005,2627.4,2627.1,2.4247]
[1724100297107,0.005,2627.4,2627.2,0.08896659]
[1724100298378,3.81105,2627.4,2627.2,0.08896659]
[1724100298572,0.005,2627.4,2627.2,0.08896659]
[1724100298781,0.005,2627.4,2626.9,2.4247]
[1724100299189,0.005,2627.4,2626.9,7.235286]
[1724100299497,0.005,2627.4,2627.2,2.4247]
[1724100299704,0.005,2627.4,2627.2,6.23103]
[1724100299858,0.005,2627.4,2627.3,0.08880253]
[1724100300201,0.005,2627.4,2627.3,0.08879687]
[1724100300709,0.005,2627.4,2627.3,6.86286769]
[1724100300872,0.005,2627.4,2627.3,6.95164194]
[1724100301805,0.005,2627.4,2627.3,3.14546194]
[1724100302112,0.005,2627.4,2627.3,2.51347425]
[1724100302681,3.81104,2627.4,2627.3,0.08877425]
[1724100303060,3.81104,2627.4,2626.8,2.4247]
[1724100303061,3.81104,2627.4,2626.9,3.0]
[1724100303364,0.005,2627.4,2627.2,2.4622]
[1724100303953,0.005,2627.4,2627.3,0.08794826]
[1724100304087,3.81104,2627.4,2627.3,0.08794826]
[1724100304266,3.81104,2627.4,2627.0,2.4622]
[1724100304464,0.005,2627.4,2627.3,0.08794826]
[1724100304668,0.005,2627.4,2627.0,2.4622]
[1724100305010,0.005,2627.4,2627.0,3.769774]
[1724100305211,0.005,2627.4,2627.1,0.08794826]
[1724100306994,3.81107,2627.4,2627.1,0.08794826]
[1724100307299,2.3972,2627.4,2627.1,0.08794826]
[1724100307739,3.80629,2627.3,2626.7,2.3809]
[1724100307938,7.61254,2627.3,2627.2,0.08608455]
[1724100308095,3.80636,2627.2,2626.5,5.3809]
[1724100308294,3.80636,2627.2,2626.1,2.3809]
[1724100308295,2.3922,2627.2,2626.1,2.3809]
[1724100308535,3.80713,2626.7,2626.1,6.18876]
[1724100308840,3.80691,2626.8,2626.2,3.80776]
[1724100309221,3.80709,2626.7,2626.1,6.1888]
[1724100309537,3.80709,2626.7,2626.1,7.188475]
[1724100310407,3.80709,2626.7,2626.2,3.0]
[1724100310741,3.80692,2626.8,2626.2,6.80777]
[1724100311109,6.19878,2627.1,2626.2,6.80772]
[1724100311340,6.19878,2627.1,2626.5,2.387]
[1724100311341,3.80658,2627.1,2626.5,2.387]
[1724100311496,4.2873254,2627.1,2626.5,2.387]
[1724100311836,4.2873054,2627.1,2626.5,6.19433]
[1724100313608,8.0938854,2627.1,2626.5,6.19433]
[1724100313808,4.2873054,2627.1,2626.5,6.19433]
[1724100314014,3.80663,2627.0,2626.5,2.387]
[1724100314202,4.23536054,2627.0,2626.5,2.387]
[1724100316042,3.8068,2626.9,2626.5,2.387]
[1724100316241,3.80708,2626.7,2626.2,5.4647]
[1724100316456,0.380708,2626.6,2626.2,2.4647]
[1724100316669,0.380708,2626.6,2625.8,6.80826]
[1724100316670,0.380708,2626.6,2626.0,5.4647]
[1724100316955,3.8073,2626.6,2626.0,6.27277]
[1724100317265,3.8073,2626.6,2626.0,2.4647]
[1724100317423,3.8075,2626.4,2626.0,2.4647]
[1724100317629,3.80736,2626.5,2626.0,2.4647]
[1724100317947,3.80721,2626.6,2626.0,2.4647]
[1724100318243,11.16677,2626.9,2626.1,3.80782]
[1724100318417,3.807,2626.8,2626.1,3.80782]
[1724100319824,11.16678,2626.9,2626.1,3.80782]
[1724100320022,7.36,2626.9,2626.2,0.6899811]
[1724100320225,7.36,2626.9,2626.1,3.80782]
[1724100320226,7.61433,2626.7,2626.1,3.80782]
[1724100320470,11.16686,2626.9,2626.1,3.80792]
[1724100320765,14.97373,2626.9,2626.2,3.80765]
[1724100321069,14.97372,2626.9,2626.2,7.050107]
[1724100321257,11.16686,2626.9,2626.2,7.050107]
[1724100321459,11.16686,2626.9,2626.3,3.80761]
[1724100321636,14.97371,2626.9,2626.3,3.80761]
[1724100321834,14.97371,2626.9,2626.4,0.08431825]
[1724100322030,7.36,2626.9,2626.5,6.28821]
[1724100322274,7.36,2626.9,2626.6,0.628821]
[1724100322796,3.80691,2626.8,2626.7,0.08431825]
[1724100322994,7.61382,2626.8,2626.7,0.08431825]
[1724100323162,3.80749,2626.4,2626.0,2.4809]
[1724100323363,3.80715,2626.7,2626.0,2.4809]
[1724100323564,3.80725,2626.6,2626.0,9.2889]
[1724100324152,3.80725,2626.6,2626.0,13.0969]
[1724100324394,3.80725,2626.6,2626.0,9.2889]
[1724100325582,3.80725,2626.6,2626.0,13.09689]
[1724100325782,3.80694,2626.8,2626.1,3.80783]
[1724100325966,3.80694,2626.8,2626.2,3.80778]
[1724100325967,7.61394,2626.8,2626.2,3.80778]
[1724100326165,3.80694,2626.8,2626.2,3.80778]
[1724100326367,7.61394,2626.8,2626.2,3.80778]
[1724100326980,3.80709,2626.7,2626.0,10.598519]
[1724100327254,1.741043,2626.7,2626.0,9.28893]
[1724100327454,3.80721,2626.6,2626.0,9.28893]
[1724100331557,3.80703,2626.8,2626.0,9.28893]
[1724100331868,3.80727,2626.6,2626.0,9.28893]
[1724100332297,3.80727,2626.6,2626.0,5.4809]
[1724100332501,3.80779,2626.2,2625.7,2.2655]
[1724100332669,3.80759,2626.4,2625.7,6.07388]
[1724100332877,3.80759,2626.4,2625.8,3.80835]
[1724100333267,3.80759,2626.4,2625.7,2.2655]
[1724100333268,3.8077,2626.3,2625.7,2.2655]
[1724100333469,3.80751,2626.4,2625.8,3.80834]
[1724100334326,5.92194685,2627.0,2626.0,6.0735]
[1724100334327,7.61461,2626.6,2626.0,6.0735]
[1724100334527,0.993921,2626.5,2626.0,6.0735]
[1724100334732,7.61464,2626.6,2626.0,6.0735]
[1724100334929,3.80739,2626.5,2626.0,2.2655]
[1724100335099,3.8072,2626.6,2626.0,2.2655]
[1724100335705,3.8072,2626.6,2626.1,0.08166645]
[1724100336520,7.61448,2626.6,2626.1,0.08166645]
[1724100336722,3.8072,2626.6,2626.1,0.08166645]
[1724100338459,3.80703,2626.8,2626.1,3.88952645]
[1724100338668,3.807,2626.8,2626.3,2.2776]
[1724100338963,3.80707,2626.7,2626.3,2.2776]
[1724100339157,3.80721,2626.6,2626.3,2.2776]
[1724100339456,3.80706,2626.7,2626.4,0.08166645]
[1724100340068,9.6388,2626.9,2626.4,0.08166645]
[1724100340222,11.16679,2626.9,2626.4,0.08166645]
[1724100341773,7.36,2626.9,2626.4,4.5058061]
[1724100341919,7.36,2626.9,2626.5,6.08486]
[1724100342319,7.36,2626.9,2626.6,0.08158155]
[1724100342627,11.17111,2627.4,2626.8,3.80683]
[1724100342851,11.17111,2627.4,2626.9,6.08429]
[1724100342852,7.365,2627.4,2626.9,6.08429]
[1724100343225,7.365,2627.4,2627.0,0.0812193]
[1724100343433,3.80619,2627.3,2627.0,0.0812193]
[1724100343659,11.17105,2627.4,2627.0,0.0812193]
[1724100344667,3.80626,2627.3,2627.0,0.0812193]
[1724100344871,3.80626,2627.3,2626.9,2.2776]
[1724100345159,7.61266,2627.2,2627.1,0.0812193]
[1724100345362,7.61266,2627.2,2626.7,2.4298]
[1724100345363,3.80653,2627.1,2626.7,2.4298]
[1724100345672,3.80653,2627.1,2626.8,0.0812193]
[1724100346165,3.80653,2627.1,2626.7,2.4298]
[1724100346372,3.80653,2627.1,2626.9,0.0812193]
[1724100346526,3.80653,2627.1,2626.7,2.4298]
[1724100346726,3.80653,2627.1,2627.0,0.0812193]
[1724100346922,3.80653,2627.1,2626.5,2.3976]
[1724100346923,3.80665,2627.0,2626.5,2.3976]
[1724100347123,3.80713,2626.7,2626.2,2.3976]
[1724100347374,3.80713,2626.7,2626.2,6.20538]
[1724100347522,3.80713,2626.7,2626.2,2.3976]
[1724100347722,3.80712,2626.7,2626.2,2.3976]
[1724100348123,3.8072,2626.6,2626.2,2.3976]
[1724100348324,0.761417,2626.6,2626.2,2.3976]
[1724100348566,0.761417,2626.6,2625.8,6.28889]
[1724100348567,3.80725,2626.6,2625.8,6.28889]
[1724100348767,2.301,2626.8,2625.8,2.4806]
[1724100348768,3.80758,2626.4,2625.8,2.4806]
[1724100348965,3.80758,2626.4,2625.8,6.28887]
[1724100349629,3.80758,2626.4,2625.9,3.80819]
[1724100349829,3.80717,2626.7,2626.0,3.0]
[1724100350168,3.80714,2626.7,2626.1,6.2886]
[1724100350354,7.61429,2626.7,2626.1,6.2886]
[1724100350960,3.8072,2626.6,2626.1,2.4807]
[1724100351253,4.51621293,2626.6,2626.1,2.4807]
[1724100351759,4.51621293,2626.6,2626.2,0.08123063]
[1724100353839,3.8072,2626.6,2626.2,0.08123063]
[1724100354040,7.61429,2626.7,2626.2,0.08123063]
[1724100354248,3.80714,2626.7,2626.2,0.08123063]
[1724100354573,7.6143,2626.7,2626.2,0.08123063]
[1724100355083,3.8072,2626.6,2626.2,0.08123063]
[1724100355458,3.80714,2626.7,2626.2,0.08123063]
[1724100356081,7.36,2627.0,2626.3,2.4191]
[1724100356231,11.1667,2627.0,2626.4,3.80747]
[1724100356620,3.80686,2626.9,2626.3,6.22662]
[1724100356731,3.80686,2626.9,2626.5,0.08145136]
[1724100356930,11.16669,2627.0,2626.4,3.88881118]
[1724100357136,11.16669,2627.0,2626.6,0.08131552]
[1724100357361,11.16669,2627.0,2626.4,3.80749]
[1724100357563,11.16669,2627.0,2626.7,0.08131552]
[1724100357877,12.85060465,2627.0,2626.8,0.08131552]
[1724100358033,7.365,2627.4,2626.8,6.22594]
[1724100358235,0.005,2627.4,2626.9,3.88800552]
[1724100358457,0.005,2627.4,2627.2,6.22532]
[1724100358860,0.005,2627.4,2627.3,7.76952073]
[1724100359033,0.005,2627.4,2627.3,13.11250391]
[1724100360888,0.005,2627.4,2627.3,9.30632391]
[1724100363565,0.005,2627.4,2627.3,13.11250391]
[1724100363878,0.005,2627.4,2627.3,14.4237543]
[1724100366258,0.005,2627.4,2627.3,10.6175743]
[1724100367490,0.005,2627.4,2627.3,14.4237543]
[1724100367858,0.005,2627.4,2627.3,10.6175743]
[1724100370092,0.005,2627.4,2627.3,14.4237543]
[1724100370293,0.005,2627.4,2627.3,10.6175743]
[1724100371022,0.005,2627.4,2627.3,14.4237543]
[1724100371346,0.005,2627.4,2627.3,10.6175743]
[1724100371805,0.005,2627.4,2627.3,3.08104391]
[1724100372006,0.005,2627.4,2627.3,0.08104391]
[1724100372438,0.005,2627.4,2626.9,6.80669]
[1724100372733,0.005,2627.4,2627.3,0.07991254]
[1724100372937,0.005,2627.4,2626.9,6.80669]
[1724100373148,0.005,2627.4,2627.3,0.08004825]
[1724100373293,0.005,2627.4,2627.1,3.80645]
[1724100373500,0.005,2627.4,2627.3,0.08004825]
[1724100373697,0.005,2627.4,2627.1,6.13625]
[1724100373943,0.005,2627.4,2627.3,0.08011609]
[1724100374144,0.005,2627.4,2627.1,6.13625]
[1724100374297,0.005,2627.4,2627.3,0.08012175]
[1724100374498,0.005,2627.4,2627.1,6.13625]
[1724100374700,0.005,2627.4,2627.3,0.08012175]
[1724100374901,0.005,2627.4,2627.1,7.5599612]
[1724100374902,0.005,2627.4,2627.1,6.13625]
[1724100375100,0.005,2627.4,2627.3,0.08012175]
[1724100375436,0.005,2627.4,2627.1,6.13625]
[1724100375642,0.005,2627.4,2627.3,0.08012175]
[1724100375842,0.005,2627.4,2627.1,6.13625]
[1724100376054,0.005,2627.4,2627.2,3.88645175]
[1724100376215,0.005,2627.4,2627.1,3.624077]
[1724100376418,0.005,2627.4,2627.2,3.88643175]
[1724100377547,0.005,2627.4,2627.2,0.08012175]
[1724100378530,3.8064,2627.2,2626.6,6.80712]
[1724100378737,3.80647,2627.1,2626.6,3.0]
[1724100378901,3.80647,2627.1,2626.5,3.80732]
[1724100379105,3.8064,2627.2,2626.6,3.80719]
[1724100379346,3.8064,2627.2,2626.7,3.80705]
[1724100379554,6.09817,2627.4,2626.6,3.80719]
[1724100379700,3.80635,2627.2,2626.6,3.80719]
[1724100379900,3.80635,2627.2,2626.6,3.80709]
[1724100380314,0.609817,2627.3,2626.4,9.2648]
[1724100380315,3.80665,2627.0,2626.4,9.26489]
[1724100380523,2.287,2626.9,2626.5,3.0]
[1724100380861,2.287,2626.9,2626.4,3.80741]
[1724100381065,2.287,2626.9,2626.5,3.0]
[1724100381759,2.287,2626.9,2626.6,0.07967903]
[1724100382765,3.80691,2626.8,2626.6,0.07967903]
[1724100382927,0.990069,2626.7,2626.6,0.07967903]
[1724100383135,0.990069,2626.7,2626.3,3.0]
[1724100383461,9.90064,2626.9,2626.3,3.0]
[1724100383656,9.90064,2626.9,2626.4,0.07982047]
[1724100384663,2.287,2626.9,2626.4,3.88727047]
[1724100384866,3.80668,2627.0,2626.4,3.88727047]
[1724100385074,3.80668,2627.0,2626.4,0.07982047]
[1724100385075,4.568005,2627.0,2626.4,0.07982047]
[1724100385579,0.761325,2627.0,2626.5,3.80732]
[1724100385709,0.761325,2627.0,2626.5,6.22692]
[1724100385910,0.761325,2627.0,2626.6,0.08027869]
[1724100386122,4.567985,2627.0,2626.6,0.08027869]
[1724100386324,0.4567805,2626.9,2626.6,0.08027869]
[1724100386620,0.4567805,2626.9,2626.7,0.08027869]
[1724100386963,0.4567805,2626.9,2626.4,3.80748]
[1724100387260,4.567985,2627.0,2626.4,3.80748]
[1724100387632,4.567985,2627.0,2626.5,0.08026737]
[1724100388913,6.08299,2627.2,2626.5,3.88760737]
[1724100389231,3.80639,2627.2,2626.7,6.20385]
[1724100389426,3.80639,2627.2,2626.8,0.08023908]
[1724100389665,5.149129,2627.2,2626.7,2.3968]
[1724100390173,9.621,2627.4,2626.7,2.3968]